[Event "Late-Titled-Tuesday-Blitz-September-26-2023"]
[Site "Chess.com"]
[Date "2023.09.26"]
[Round "9"]
[White "NigelDwarf"]
[Black "cristiano78"]
[Result "1-0"]
[WhiteElo "2518"]
[BlackElo "2255"]
[TimeControl "180+1"]
[EndTime "15:41:19 PDT"]
[Termination "NigelDwarf won on time"]

1. f4 {[%clk 0:02:54.3]} 1... Nf6 {[%clk 0:02:56.9]} 2. Nf3 {[%clk 0:02:49.6]}
2... g6 {[%clk 0:02:56.7]} 3. g3 {[%clk 0:02:41.9]} 3... Bg7 {[%clk 0:02:56.6]}
4. Bg2 {[%clk 0:02:42.4]} 4... Kf8 {[%clk 0:02:57.4]} 5. O-O {[%clk 0:02:42.1]}
5... d5 {[%clk 0:02:57.3]} 6. d3 {[%clk 0:02:37.5]} 6... c6 {[%clk 0:02:55.7]}
7. Nbd2 {[%clk 0:02:31.1]} 7... Nbd7 {[%clk 0:02:55.3]} 8. e4 {[%clk 0:02:30]}
8... dxe4 {[%clk 0:02:55.1]} 9. dxe4 {[%clk 0:02:28.9]} 9... Qb6+ {[%clk
0:02:53.3]} 10. Kh1 {[%clk 0:02:27.5]} 10... Ng4 {[%clk 0:02:52.4]} 11. Qe2
{[%clk 0:02:22.3]} 11... Ne3 {[%clk 0:02:46.2]} 12. Nc4 {[%clk 0:02:14.2]} 12...
Nxc4 {[%clk 0:02:43.2]} 13. Qxc4 {[%clk 0:02:15.1]} 13... Nf6 {[%clk 0:02:36]}
14. Ng5 {[%clk 0:02:05.4]} 14... e6 {[%clk 0:02:32]} 15. f5 {[%clk 0:01:52]}
15... h6 {[%clk 0:02:22.5]} 16. e5 {[%clk 0:01:18.7]} 16... gxf5 {[%clk
0:02:09.3]} 17. exf6 {[%clk 0:01:15.8]} 17... Bxf6 {[%clk 0:01:56]} 18. Ne4
{[%clk 0:01:12.8]} 18... Be7 {[%clk 0:01:48.2]} 19. Qc3 {[%clk 0:01:02.5]} 19...
Rh7 {[%clk 0:01:40.5]} 20. Be3 {[%clk 0:00:59]} 20... Qb4 {[%clk 0:01:32.7]} 21.
Nf6 {[%clk 0:00:41.7]} 21... Qxc3 {[%clk 0:01:26]} 22. Nxh7+ {[%clk 0:00:40.9]}
22... Kg7 {[%clk 0:01:25.8]} 23. bxc3 {[%clk 0:00:41.8]} 23... Kxh7 {[%clk
0:01:25.7]} 24. g4 {[%clk 0:00:41.3]} 24... Kg6 {[%clk 0:01:20.4]} 25. gxf5+
{[%clk 0:00:40.9]} 25... exf5 {[%clk 0:01:20.5]} 26. Rg1 {[%clk 0:00:41.1]}
26... Bg5 {[%clk 0:01:14.8]} 27. Bf3 {[%clk 0:00:37.7]} 27... Kf6 {[%clk
0:01:10.7]} 28. Bd4+ {[%clk 0:00:37.1]} 28... Ke7 {[%clk 0:01:07.2]} 29. Rae1+
{[%clk 0:00:38]} 29... Be6 {[%clk 0:01:07]} 30. Bc5+ {[%clk 0:00:34.5]} 30...
Kd7 {[%clk 0:01:04.2]} 31. Rd1+ {[%clk 0:00:33.1]} 31... Kc7 {[%clk 0:01:04.4]}
32. Bd6+ {[%clk 0:00:31.2]} 32... Kb6 {[%clk 0:01:02.4]} 33. Rb1+ {[%clk
0:00:30.3]} 33... Ka6 {[%clk 0:01:00]} 34. Rb4 {[%clk 0:00:22]} 34... Rd8 {[%clk
0:00:19]} 35. Rgb1 {[%clk 0:00:17.4]} 35... b5 {[%clk 0:00:14.3]} 36. Bc7 {[%clk
0:00:13]} 36... Rd2 {[%clk 0:00:12]} 37. Bxc6 {[%clk 0:00:10.9]} 37... Bd5+
{[%clk 0:00:06.9]} 38. Bxd5 {[%clk 0:00:09.9]} 38... Rxd5 {[%clk 0:00:07.7]} 39.
c4 {[%clk 0:00:09.5]} 39... bxc4 {[%clk 0:00:06.6]} 40. Ra4+ {[%clk 0:00:09.3]}
1-0

[Event "Late-Titled-Tuesday-Blitz-September-26-2023"]
[Site "Chess.com"]
[Date "2023.09.26"]
[Round "9"]
[White "reevecanada"]
[Black "bazar-wokzal"]
[Result "1/2-1/2"]
[WhiteElo "2542"]
[BlackElo "2673"]
[TimeControl "180+1"]
[EndTime "15:41:22 PDT"]
[Termination "Game drawn by repetition"]

1. e4 {[%clk 0:02:59.4]} 1... Nc6 {[%clk 0:02:59.4]} 2. Nf3 {[%clk 0:02:55.1]}
2... d5 {[%clk 0:02:59.3]} 3. exd5 {[%clk 0:02:55.7]} 3... Qxd5 {[%clk
0:02:59.9]} 4. Nc3 {[%clk 0:02:56.3]} 4... Qa5 {[%clk 0:03:00.2]} 5. d4 {[%clk
0:02:56.1]} 5... Bg4 {[%clk 0:03:00.2]} 6. d5 {[%clk 0:02:55.9]} 6... O-O-O
{[%clk 0:03:00.1]} 7. h3 {[%clk 0:02:54.8]} 7... Bxf3 {[%clk 0:02:53.8]} 8. Qxf3
{[%clk 0:02:47]} 8... Nb4 {[%clk 0:02:53.6]} 9. Bd3 {[%clk 0:02:47.6]} 9... Nf6
{[%clk 0:02:53.1]} 10. O-O {[%clk 0:02:37.5]} 10... Nbxd5 {[%clk 0:02:48.4]} 11.
Bd2 {[%clk 0:02:32.3]} 11... e6 {[%clk 0:02:45.7]} 12. Rad1 {[%clk 0:02:29.9]}
12... Bb4 {[%clk 0:02:13.1]} 13. Nxd5 {[%clk 0:02:26.8]} 13... exd5 {[%clk
0:01:49.7]} 14. Bg5 {[%clk 0:02:22.7]} 14... Be7 {[%clk 0:01:44.5]} 15. Rfe1
{[%clk 0:02:18.5]} 15... Rhe8 {[%clk 0:01:43.7]} 16. c3 {[%clk 0:02:13.4]} 16...
Kb8 {[%clk 0:01:41.1]} 17. b4 {[%clk 0:02:05.4]} 17... Qxa2 {[%clk 0:01:34]} 18.
Ra1 {[%clk 0:02:01.6]} 18... Qb3 {[%clk 0:01:28.2]} 19. Bb5 {[%clk 0:02:00.3]}
19... c6 {[%clk 0:01:23.8]} 20. Bf4+ {[%clk 0:01:21.9]} 20... Bd6 {[%clk
0:00:57.4]} 21. Bxd6+ {[%clk 0:01:11.9]} 21... Rxd6 {[%clk 0:00:57.5]} 22. Rxe8+
{[%clk 0:01:11.9]} 22... Nxe8 {[%clk 0:00:57.8]} 23. Qxf7 {[%clk 0:01:11.2]}
23... Nf6 {[%clk 0:00:47]} 24. Qf8+ {[%clk 0:01:00.7]} 24... Kc7 {[%clk
0:00:46.7]} 25. Qxg7+ {[%clk 0:00:59.4]} 25... Kb6 {[%clk 0:00:42.6]} 26. Qf8
{[%clk 0:00:39.7]} 26... Qxc3 {[%clk 0:00:37.4]} 27. Qxd6 {[%clk 0:00:19.2]}
27... Qxa1+ {[%clk 0:00:36.6]} 28. Bf1 {[%clk 0:00:19.8]} 28... a6 {[%clk
0:00:22.9]} 29. Qe7 {[%clk 0:00:18.3]} 29... Ne4 {[%clk 0:00:20.6]} 30. Qxh7
{[%clk 0:00:17.6]} 30... Qd4 {[%clk 0:00:19.2]} 31. Qf5 {[%clk 0:00:17.5]} 31...
Qxb4 {[%clk 0:00:17.7]} 32. h4 {[%clk 0:00:18.1]} 32... a5 {[%clk 0:00:16.6]}
33. h5 {[%clk 0:00:18.4]} 33... a4 {[%clk 0:00:17]} 34. h6 {[%clk 0:00:18.7]}
34... Qd4 {[%clk 0:00:16.4]} 35. h7 {[%clk 0:00:16.2]} 35... a3 {[%clk
0:00:16.9]} 36. Qf8 {[%clk 0:00:15.5]} 36... a2 {[%clk 0:00:15]} 37. Qd8+ {[%clk
0:00:15.3]} 37... Kc5 {[%clk 0:00:11.4]} 38. Qa5+ {[%clk 0:00:06.8]} 38... Kd6
{[%clk 0:00:11.5]} 39. Qa3+ {[%clk 0:00:06.3]} 39... c5 {[%clk 0:00:08.5]} 40.
Qxa2 {[%clk 0:00:06.8]} 40... Qg7 {[%clk 0:00:07.3]} 41. f3 {[%clk 0:00:05.6]}
41... Qd4+ {[%clk 0:00:06.8]} 42. Kh2 {[%clk 0:00:03.3]} 42... Qe5+ {[%clk
0:00:06.4]} 43. Kg1 {[%clk 0:00:04]} 43... Qd4+ {[%clk 0:00:06.9]} 44. Kh2
{[%clk 0:00:04.2]} 44... Qe5+ {[%clk 0:00:07.4]} 45. Kg1 {[%clk 0:00:04.2]}
45... Qd4+ {[%clk 0:00:07.8]} 1/2-1/2

[Event "Late-Titled-Tuesday-Blitz-September-26-2023"]
[Site "Chess.com"]
[Date "2023.09.26"]
[Round "9"]
[White "RIPOL"]
[Black "IMRosen"]
[Result "1-0"]
[WhiteElo "2420"]
[BlackElo "2549"]
[TimeControl "180+1"]
[EndTime "15:41:23 PDT"]
[Termination "RIPOL won on time"]

1. d4 {[%clk 0:02:59]} 1... d5 {[%clk 0:02:51.7]} 2. c4 {[%clk 0:02:58.1]} 2...
e6 {[%clk 0:02:19.2]} 3. Nc3 {[%clk 0:02:57]} 3... Nf6 {[%clk 0:02:19.5]} 4.
cxd5 {[%clk 0:02:55.8]} 4... exd5 {[%clk 0:02:20.4]} 5. Bg5 {[%clk 0:02:55.2]}
5... c6 {[%clk 0:02:20.4]} 6. Qc2 {[%clk 0:02:53.8]} 6... Bd6 {[%clk 0:02:19.6]}
7. e3 {[%clk 0:02:47.5]} 7... O-O {[%clk 0:02:19.7]} 8. Bd3 {[%clk 0:02:46.2]}
8... h6 {[%clk 0:02:20.3]} 9. Bh4 {[%clk 0:02:45.5]} 9... Re8 {[%clk 0:02:21]}
10. Nge2 {[%clk 0:02:44.7]} 10... a5 {[%clk 0:02:21.1]} 11. h3 {[%clk
0:02:26.9]} 11... Na6 {[%clk 0:02:20.6]} 12. a3 {[%clk 0:02:25.8]} 12... Nc7
{[%clk 0:02:21.3]} 13. O-O {[%clk 0:02:25.2]} 13... Ne6 {[%clk 0:02:20.6]} 14.
f3 {[%clk 0:02:22.3]} 14... Ng5 {[%clk 0:02:21]} 15. Bf2 {[%clk 0:02:18.8]}
15... Nxh3+ {[%clk 0:02:13.9]} 16. gxh3 {[%clk 0:02:17.7]} 16... Bxh3 {[%clk
0:02:14.8]} 17. Bf5 {[%clk 0:02:04.1]} 17... Bxf1 {[%clk 0:02:09.5]} 18. Rxf1
{[%clk 0:02:03.3]} 18... Nh5 {[%clk 0:02:03.2]} 19. Bg4 {[%clk 0:01:51.4]} 19...
g6 {[%clk 0:01:52.7]} 20. Bxh5 {[%clk 0:01:42.6]} 20... Qg5+ {[%clk 0:01:51.7]}
21. Bg4 {[%clk 0:01:35]} 21... h5 {[%clk 0:01:52.6]} 22. Kg2 {[%clk 0:01:30.2]}
22... hxg4 {[%clk 0:01:51.6]} 23. f4 {[%clk 0:01:30.1]} 23... Qe7 {[%clk
0:01:07.6]} 24. Rh1 {[%clk 0:01:24.9]} 24... f5 {[%clk 0:01:02.4]} 25. Nc1
{[%clk 0:01:18.5]} 25... b5 {[%clk 0:01:01.5]} 26. Qd3 {[%clk 0:01:00.6]} 26...
b4 {[%clk 0:01:01.2]} 27. axb4 {[%clk 0:00:59.5]} 27... axb4 {[%clk 0:01:02.1]}
28. N3e2 {[%clk 0:00:58.3]} 28... Qe4+ {[%clk 0:00:51.2]} 29. Qxe4 {[%clk
0:00:57.3]} 29... Rxe4 {[%clk 0:00:52.1]} 30. Nd3 {[%clk 0:00:54.4]} 30... Ra6
{[%clk 0:00:29.8]} 31. Rc1 {[%clk 0:00:53.2]} 31... Kf7 {[%clk 0:00:29.4]} 32.
Ne5+ {[%clk 0:00:42.5]} 32... Bxe5 {[%clk 0:00:28.4]} 33. dxe5 {[%clk
0:00:42.7]} 33... Rc4 {[%clk 0:00:27.6]} 34. Rh1 {[%clk 0:00:38.3]} 34... Rc2
{[%clk 0:00:23.8]} 35. Nd4 {[%clk 0:00:36]} 35... Rxb2 {[%clk 0:00:24]} 36. Rh7+
{[%clk 0:00:35.4]} 36... Kg8 {[%clk 0:00:24.1]} 37. Rb7 {[%clk 0:00:32.5]} 37...
Raa2 {[%clk 0:00:24.5]} 38. Kg3 {[%clk 0:00:30.5]} 38... Rxf2 {[%clk 0:00:24.4]}
39. Kh4 {[%clk 0:00:30.5]} 39... Rh2+ {[%clk 0:00:14.5]} 40. Kg5 {[%clk
0:00:30.5]} 40... g3 {[%clk 0:00:14.5]} 41. Rb8+ {[%clk 0:00:21.1]} 41... Kf7
{[%clk 0:00:09.6]} 42. Rb7+ {[%clk 0:00:20.2]} 42... Ke8 {[%clk 0:00:08.7]} 43.
Ne6 {[%clk 0:00:19.2]} 43... Rh7 {[%clk 0:00:01.7]} 44. Rxb4 {[%clk 0:00:11.9]}
44... g2 {[%clk 0:00:01.2]} 45. Rb1 {[%clk 0:00:09.7]} 45... Re7 {[%clk
0:00:01.4]} 46. Kf6 {[%clk 0:00:08.6]} 1-0

[Event "Late-Titled-Tuesday-Blitz-September-26-2023"]
[Site "Chess.com"]
[Date "2023.09.26"]
[Round "9"]
[White "amanmuhammethommadov"]
[Black "Mikhail_Bryakin"]
[Result "0-1"]
[WhiteElo "2603"]
[BlackElo "2845"]
[TimeControl "180+1"]
[EndTime "15:41:28 PDT"]
[Termination "Mikhail_Bryakin won on time"]

1. e4 {[%clk 0:03:00.9]} 1... d5 {[%clk 0:02:59.6]} 2. exd5 {[%clk 0:03:00.7]}
2... Qxd5 {[%clk 0:03:00.5]} 3. Nc3 {[%clk 0:02:59.1]} 3... Qe5+ {[%clk
0:03:01.1]} 4. Be2 {[%clk 0:02:57.7]} 4... Bg4 {[%clk 0:03:01.7]} 5. d4 {[%clk
0:02:57.8]} 5... Bxe2 {[%clk 0:03:02.3]} 6. Ngxe2 {[%clk 0:02:58.1]} 6... Qa5
{[%clk 0:03:03]} 7. b4 {[%clk 0:02:49.8]} 7... Qh5 {[%clk 0:03:02.5]} 8. Qd3
{[%clk 0:02:49.7]} 8... Nf6 {[%clk 0:02:56.4]} 9. Nf4 {[%clk 0:02:44.9]} 9...
Qg4 {[%clk 0:02:51.9]} 10. O-O {[%clk 0:02:39.1]} 10... Nc6 {[%clk 0:02:43]} 11.
d5 {[%clk 0:02:27.6]} 11... Nd8 {[%clk 0:02:34.3]} 12. Nb5 {[%clk 0:02:16.4]}
12... Qd7 {[%clk 0:02:32.6]} 13. c4 {[%clk 0:02:09.5]} 13... c6 {[%clk
0:02:30.1]} 14. Nc3 {[%clk 0:02:06]} 14... cxd5 {[%clk 0:02:10.8]} 15. cxd5
{[%clk 0:02:06.9]} 15... e5 {[%clk 0:02:11.3]} 16. dxe6 {[%clk 0:01:57.4]} 16...
Nxe6 {[%clk 0:02:10.4]} 17. Qxd7+ {[%clk 0:01:46.4]} 17... Nxd7 {[%clk
0:02:10.6]} 18. Nxe6 {[%clk 0:01:46.3]} 18... fxe6 {[%clk 0:02:11.5]} 19. a3
{[%clk 0:01:46.6]} 19... Rc8 {[%clk 0:02:10.1]} 20. Bb2 {[%clk 0:01:32.1]} 20...
Nf6 {[%clk 0:02:10]} 21. Rfe1 {[%clk 0:01:31.1]} 21... Kf7 {[%clk 0:02:10.2]}
22. Rad1 {[%clk 0:01:30.5]} 22... Be7 {[%clk 0:02:09.9]} 23. Nb5 {[%clk
0:01:08.1]} 23... a6 {[%clk 0:02:05.9]} 24. Nd4 {[%clk 0:01:08.1]} 24... Rhd8
{[%clk 0:02:00.6]} 25. Nf3 {[%clk 0:00:57.6]} 25... Rxd1 {[%clk 0:01:58.5]} 26.
Rxd1 {[%clk 0:00:58.5]} 26... h6 {[%clk 0:01:55.8]} 27. Kf1 {[%clk 0:00:52.6]}
27... Rc2 {[%clk 0:01:55.8]} 28. Rd2 {[%clk 0:00:52.7]} 28... Rc7 {[%clk
0:01:53.6]} 29. Rd1 {[%clk 0:00:45.5]} 29... Nd5 {[%clk 0:01:53.9]} 30. Rc1
{[%clk 0:00:43.4]} 30... Rxc1+ {[%clk 0:01:54]} 31. Bxc1 {[%clk 0:00:44.3]}
31... Bf6 {[%clk 0:01:54.2]} 32. Ke2 {[%clk 0:00:45]} 32... Ke7 {[%clk
0:01:50.9]} 33. Kd3 {[%clk 0:00:45.4]} 33... Kd6 {[%clk 0:01:51.7]} 34. Nd2
{[%clk 0:00:43.7]} 34... Kc6 {[%clk 0:01:51.6]} 35. Ne4 {[%clk 0:00:42.4]} 35...
Be7 {[%clk 0:01:48.6]} 36. g3 {[%clk 0:00:42.8]} 36... Kb5 {[%clk 0:01:48.5]}
37. h4 {[%clk 0:00:37.6]} 37... Ka4 {[%clk 0:01:45.8]} 38. h5 {[%clk 0:00:36.6]}
38... b6 {[%clk 0:01:39.5]} 39. f4 {[%clk 0:00:33.3]} 39... Kb3 {[%clk 0:01:39]}
40. g4 {[%clk 0:00:33]} 40... a5 {[%clk 0:01:37.9]} 41. bxa5 {[%clk 0:00:31.4]}
41... bxa5 {[%clk 0:01:38.8]} 42. a4 {[%clk 0:00:22.4]} 42... Kxa4 {[%clk
0:01:36.9]} 43. g5 {[%clk 0:00:22.2]} 43... Kb3 {[%clk 0:01:34.2]} 44. Ng3
{[%clk 0:00:16.5]} 44... a4 {[%clk 0:01:26.4]} 45. gxh6 {[%clk 0:00:16.7]} 45...
gxh6 {[%clk 0:01:27.3]} 46. f5 {[%clk 0:00:17.6]} 46... Bg5 {[%clk 0:01:27.9]}
47. Bxg5 {[%clk 0:00:14.4]} 47... hxg5 {[%clk 0:01:28.8]} 48. h6 {[%clk
0:00:15.3]} 48... Nf6 {[%clk 0:01:26.8]} 49. Ne4 {[%clk 0:00:15.2]} 49... a3
{[%clk 0:01:19.5]} 50. Nxf6 {[%clk 0:00:04.1]} 50... a2 {[%clk 0:01:19.7]} 51.
h7 {[%clk 0:00:05]} 51... a1=Q {[%clk 0:01:20.4]} 52. h8=Q {[%clk 0:00:05.9]}
52... Qc3+ {[%clk 0:01:16.8]} 53. Ke4 {[%clk 0:00:06.6]} 53... Qc4+ {[%clk
0:01:14.5]} 54. Ke3 {[%clk 0:00:06.8]} 54... Qf4+ {[%clk 0:01:14.2]} 55. Ke2
{[%clk 0:00:06.5]} 55... Qe5+ {[%clk 0:01:14.4]} 56. Kd1 {[%clk 0:00:05.5]}
56... Qd4+ {[%clk 0:01:01]} 57. Ke2 {[%clk 0:00:05.4]} 57... Qe5+ {[%clk
0:01:01]} 58. Kd1 {[%clk 0:00:05.2]} 58... exf5 {[%clk 0:01:00.2]} 59. Qg8+
{[%clk 0:00:03.2]} 59... Kc3 {[%clk 0:01:00.6]} 60. Qd8 {[%clk 0:00:02]} 60...
Qh2 {[%clk 0:00:47.1]} 61. Nd5+ {[%clk 0:00:01.4]} 61... Kd4 {[%clk 0:00:46.3]}
0-1

[Event "Late-Titled-Tuesday-Blitz-September-26-2023"]
[Site "Chess.com"]
[Date "2023.09.26"]
[Round "9"]
[White "Zhigalko_Sergei"]
[Black "DanielNaroditsky"]
[Result "1-0"]
[WhiteElo "2929"]
[BlackElo "3122"]
[TimeControl "180+1"]
[EndTime "15:41:29 PDT"]
[Termination "Zhigalko_Sergei won by resignation"]

1. e4 {[%clk 0:03:00.9]} 1... c5 {[%clk 0:02:53.3]} 2. c3 {[%clk 0:02:58.7]}
2... d6 {[%clk 0:02:53.9]} 3. d4 {[%clk 0:02:59.1]} 3... Nf6 {[%clk 0:02:53.9]}
4. Bd3 {[%clk 0:02:59.3]} 4... Nc6 {[%clk 0:02:52.2]} 5. d5 {[%clk 0:02:57.7]}
5... Ne5 {[%clk 0:02:51.2]} 6. Bc2 {[%clk 0:02:58.1]} 6... g6 {[%clk 0:02:29.1]}
7. f4 {[%clk 0:02:56.3]} 7... Bg4 {[%clk 0:02:27]} 8. Qd2 {[%clk 0:02:45.3]}
8... Nc4 {[%clk 0:02:24.9]} 9. Qd3 {[%clk 0:02:24.6]} 9... Nb6 {[%clk
0:02:22.8]} 10. c4 {[%clk 0:02:12.7]} 10... Bg7 {[%clk 0:02:11.4]} 11. Nc3
{[%clk 0:02:10.6]} 11... O-O {[%clk 0:02:02.9]} 12. h3 {[%clk 0:02:04.7]} 12...
Bd7 {[%clk 0:02:03.1]} 13. Nf3 {[%clk 0:02:04.6]} 13... e6 {[%clk 0:02:01.5]}
14. O-O {[%clk 0:01:57.8]} 14... exd5 {[%clk 0:02:00.9]} 15. cxd5 {[%clk
0:01:58.7]} 15... Re8 {[%clk 0:01:56.4]} 16. Re1 {[%clk 0:01:51.7]} 16... a6
{[%clk 0:01:41.8]} 17. Bd2 {[%clk 0:01:49.6]} 17... Nh5 {[%clk 0:01:24.4]} 18.
Rad1 {[%clk 0:01:41.5]} 18... Bb5 {[%clk 0:01:17.9]} 19. Nxb5 {[%clk 0:01:40.3]}
19... axb5 {[%clk 0:01:18.8]} 20. Qxb5 {[%clk 0:01:32.7]} 20... Rxa2 {[%clk
0:01:18.1]} 21. Rb1 {[%clk 0:01:15.3]} 21... Ra6 {[%clk 0:01:03.7]} 22. Ra1
{[%clk 0:01:08]} 22... Nd7 {[%clk 0:00:50.5]} 23. Rxa6 {[%clk 0:00:57.2]} 23...
bxa6 {[%clk 0:00:51.4]} 24. Qxa6 {[%clk 0:00:57.8]} 24... Qb6 {[%clk 0:00:52.1]}
25. Qxb6 {[%clk 0:00:52.9]} 25... Nxb6 {[%clk 0:00:53]} 26. b3 {[%clk 0:00:53]}
26... Ra8 {[%clk 0:00:53.2]} 27. Bd3 {[%clk 0:00:18.3]} 27... Ra2 {[%clk
0:00:50.3]} 28. Bc4 {[%clk 0:00:18.7]} 28... Bd4+ {[%clk 0:00:27]} 29. Nxd4
{[%clk 0:00:11.3]} 29... Rxd2 {[%clk 0:00:27.3]} 30. Nf3 {[%clk 0:00:11]} 30...
Rc2 {[%clk 0:00:28.1]} 31. e5 {[%clk 0:00:11.5]} 31... Nxf4 {[%clk 0:00:20.7]}
32. e6 {[%clk 0:00:11.4]} 32... Rxg2+ {[%clk 0:00:21.5]} 33. Kf1 {[%clk
0:00:10.4]} 33... Nc8 {[%clk 0:00:12.6]} 34. Re4 {[%clk 0:00:02.8]} 34... f5
{[%clk 0:00:03.1]} 35. Rxf4 {[%clk 0:00:02.7]} 35... Rb2 {[%clk 0:00:01.8]} 36.
h4 {[%clk 0:00:02.9]} 36... Ne7 {[%clk 0:00:01.8]} 37. Ng5 {[%clk 0:00:03.2]}
37... Kg7 {[%clk 0:00:01.7]} 38. Rf2 {[%clk 0:00:03.6]} 38... Rb1+ {[%clk
0:00:02.1]} 39. Kg2 {[%clk 0:00:04.2]} 39... h6 {[%clk 0:00:01.8]} 40. Nf3
{[%clk 0:00:04.6]} 40... Kf6 {[%clk 0:00:02.5]} 41. Re2 {[%clk 0:00:04.4]} 41...
g5 {[%clk 0:00:03]} 42. hxg5+ {[%clk 0:00:04.4]} 42... hxg5 {[%clk 0:00:03.9]}
43. Nd2 {[%clk 0:00:04.9]} 43... Rb2 {[%clk 0:00:03.9]} 44. Ne4+ {[%clk
0:00:04.2]} 44... fxe4 {[%clk 0:00:04.5]} 45. Rxb2 {[%clk 0:00:05.1]} 45... Ng6
{[%clk 0:00:04.6]} 46. Rf2+ {[%clk 0:00:05]} 46... Ke5 {[%clk 0:00:04.1]} 47.
Rf7 {[%clk 0:00:04.8]} 47... Kd4 {[%clk 0:00:03.8]} 48. e7 {[%clk 0:00:05.1]}
48... Nxe7 {[%clk 0:00:04.5]} 49. Rxe7 {[%clk 0:00:06]} 1-0

[Event "Late-Titled-Tuesday-Blitz-September-26-2023"]
[Site "Chess.com"]
[Date "2023.09.26"]
[Round "9"]
[White "whitemirrorninja"]
[Black "aNaartjieZA"]
[Result "1-0"]
[WhiteElo "2501"]
[BlackElo "2595"]
[TimeControl "180+1"]
[EndTime "15:41:29 PDT"]
[Termination "whitemirrorninja won by checkmate"]

1. e4 {[%clk 0:03:00.9]} 1... e6 {[%clk 0:03:00]} 2. d4 {[%clk 0:02:59.7]} 2...
d5 {[%clk 0:03:00.2]} 3. e5 {[%clk 0:02:58.6]} 3... c5 {[%clk 0:03:00]} 4. c3
{[%clk 0:02:59.2]} 4... Nc6 {[%clk 0:03:00]} 5. Nf3 {[%clk 0:02:59.8]} 5... Qb6
{[%clk 0:02:59.6]} 6. a3 {[%clk 0:02:59.5]} 6... a5 {[%clk 0:02:56.8]} 7. a4
{[%clk 0:02:48.6]} 7... cxd4 {[%clk 0:02:49.5]} 8. cxd4 {[%clk 0:02:48.2]} 8...
Bb4+ {[%clk 0:02:49.5]} 9. Nc3 {[%clk 0:02:47.9]} 9... Bd7 {[%clk 0:02:45.9]}
10. Bd3 {[%clk 0:02:46.8]} 10... Nxd4 {[%clk 0:02:40.8]} 11. O-O {[%clk
0:02:35.4]} 11... Nc6 {[%clk 0:02:20.4]} 12. Nb5 {[%clk 0:02:31.8]} 12... Nge7
{[%clk 0:02:16.7]} 13. Be3 {[%clk 0:02:20.8]} 13... Qd8 {[%clk 0:02:15]} 14. Rc1
{[%clk 0:02:19.7]} 14... Ng6 {[%clk 0:02:09.6]} 15. Bg5 {[%clk 0:02:11.2]} 15...
Qb8 {[%clk 0:02:09]} 16. Bxg6 {[%clk 0:01:58.4]} 16... hxg6 {[%clk 0:02:08]} 17.
Qe2 {[%clk 0:01:58]} 17... O-O {[%clk 0:02:00.1]} 18. Qe3 {[%clk 0:01:30.8]}
18... f6 {[%clk 0:01:45.7]} 19. Bf4 {[%clk 0:01:24.7]} 19... fxe5 {[%clk
0:01:29.6]} 20. Nxe5 {[%clk 0:01:22.2]} 20... Nxe5 {[%clk 0:01:22.9]} 21. Bxe5
{[%clk 0:01:21.7]} 21... Qd8 {[%clk 0:01:21.2]} 22. Nd4 {[%clk 0:01:02.6]} 22...
b6 {[%clk 0:01:01.6]} 23. Qg3 {[%clk 0:00:47.3]} 23... g5 {[%clk 0:00:56.9]} 24.
Nf3 {[%clk 0:00:28.1]} 24... Rf5 {[%clk 0:00:50.7]} 25. Nd4 {[%clk 0:00:26]}
25... Rf7 {[%clk 0:00:42.6]} 26. f4 {[%clk 0:00:25.3]} 26... Bd2 {[%clk
0:00:39.3]} 27. Rcd1 {[%clk 0:00:14.6]} 27... gxf4 {[%clk 0:00:39.5]} 28. Qg6
{[%clk 0:00:09.4]} 28... Be3+ {[%clk 0:00:38.6]} 29. Kh1 {[%clk 0:00:10]} 29...
Qe7 {[%clk 0:00:23.5]} 30. Nf3 {[%clk 0:00:10.1]} 30... Bxa4 {[%clk 0:00:20.5]}
31. Ng5 {[%clk 0:00:10.1]} 31... Qxg5 {[%clk 0:00:14.2]} 32. Qxg5 {[%clk
0:00:11]} 32... Bxd1 {[%clk 0:00:14.3]} 33. Rxd1 {[%clk 0:00:11.9]} 33... Rc8
{[%clk 0:00:14.6]} 34. Qg4 {[%clk 0:00:10.9]} 34... Rc6 {[%clk 0:00:14.2]} 35.
h4 {[%clk 0:00:08.8]} 35... Kh7 {[%clk 0:00:13.6]} 36. h5 {[%clk 0:00:08.8]}
36... Kg8 {[%clk 0:00:13.6]} 37. h6 {[%clk 0:00:08.6]} 37... f3 {[%clk
0:00:12.1]} 38. gxf3 {[%clk 0:00:08.2]} 38... Rc2 {[%clk 0:00:11.2]} 39. hxg7
{[%clk 0:00:07.3]} 39... Rf5 {[%clk 0:00:09.9]} 40. Qh3 {[%clk 0:00:06.2]} 40...
Kf7 {[%clk 0:00:06.8]} 41. Qh8 {[%clk 0:00:04.9]} 41... Rg5 {[%clk 0:00:04]} 42.
Qf8+ {[%clk 0:00:03.8]} 42... Kg6 {[%clk 0:00:04]} 43. g8=Q+ {[%clk 0:00:04.5]}
43... Kh5 {[%clk 0:00:04.3]} 44. Qh7# {[%clk 0:00:04.9]} 1-0